[Event "Hungarian Rapid-ch 2022"]
[Site "Ajka"]
[Date "2022.07.15"]
[Round "3.16"]
[White "Kozak, Adam"]
[Black "Papp, Bence"]
[Result "1-0"]
[ECO "E10"]
[WhiteElo "2522"]
[BlackElo "2244"]
[Annotator "ChessBase"]
[PlyCount "123"]
[EventDate "2022.07.15"]
[EventType "swiss"]
[EventCountry "HUN"]
[SourceTitle "playchess.com"]
[Source "ChessBase"]
[SourceQuality "1"]
[TimeControl "900+10"]

1. d4 {[%emt 0:00:12]} Nf6 {[%emt 0:00:12]} 2. c4 {[%emt 0:00:01]} e6 {[%emt 0:00:01]} 3. Nf3 {[%emt 0:00:07]} a6 {[%emt 0:00:03]} 4. Nc3 {[%emt 0:00:40]} d5 {[%emt 0:00:01]} 5. cxd5 {[%emt 0:00:25]} exd5 {[%emt 0:00:02]} 6. Bg5 {[%emt 0:00:30]} Be6 {[%emt 0:00:03]} 7. e3 {[%emt 0:00:08]} Nbd7 {[%emt 0:00:03]} 8. Bd3 {[%emt 0:00:23]} c6 {[%emt 0:00:02]} 9. h3 {[%emt 0:00:20]} Bd6 {[%emt 0:00:05]} 10. Qc2 {[%emt 0:00:37]} Qc7 {[%emt 0:00:04]} 11. Bf5 {[%emt 0:01:31]} Bxf5 {[%emt 0:00:15]} 12. Qxf5 {[%emt 0:00:02]} h6 {[%emt 0:00:48]} 13. Bxf6 {[%emt 0:00:18]} Nxf6 {[%emt 0:00:02]} 14. O-O {[%emt 0:00:41]} O-O {[%emt 0:00:04]} 15. Rab1 {[%emt 0:00:02]} Bb4 {[%emt 0:00:53]} 16. Rfc1 {[%emt 0:01:13]} Qa5 {[%emt 0:01:15]} 17. Ne5 {[%emt 0:01:03]} Rac8 {[%emt 0:01:25]} 18. Rc2 {[%emt 0:02:50]} Rc7 {[%emt 0:00:30]} 19. Rbc1 {[%emt 0:01:18]} Re7 {[%emt 0:04:18]} 20. a3 {[%emt 0:02:46]} Bxc3 {[%emt 0:00:02]} 21. Rxc3 {[%emt 0:00:02]} Ne4 {[%emt 0:00:12]} 22. R3c2 {[%emt 0:00:05]} Qd8 {[%emt 0:01:28]} 23. b4 {[%emt 0:01:46]} Nd6 {[%emt 0:02:26]} 24. Qd3 {[%emt 0:00:23]} Rfe8 {[%emt 0:01:11]} 25. a4 {[%emt 0:00:13]} f6 {[%emt 0:00:31]} 26. Ng6 {[%emt 0:00:13]} Re4 {[%emt 0:00:05]} 27. Qb3 {[%emt 0:00:22]} Qd7 {[%emt 0:00:50]} 28. Nf4 {[%emt 0:01:18]} Qf5 {[%emt 0:01:26]} 29. Nd3 g5 {[%emt 0:00:51]} 30. Nc5 {[%emt 0:00:24]} R4e7 {[%emt 0:00:02]} 31. Qd3 {[%emt 0:00:14]} Qxd3 {[%emt 0:00:42]} 32. Nxd3 {[%emt 0:00:02]} Kf7 {[%emt 0:00:01]} 33. Nb2 {[%emt 0:00:20]} Ke6 {[%emt 0:00:12]} 34. Nd3 {[%emt 0:00:06]} Kf7 {[%emt 0:00:03]} 35. g4 {[%emt 0:00:12]} h5 {[%emt 0:00:03]} 36. Kg2 {[%emt 0:00:01]} h4 {[%emt 0:00:02]} 37. Nc5 {[%emt 0:00:13]} Kg6 {[%emt 0:00:17]} 38. Kf3 {[%emt 0:00:06]} Rf8 {[%emt 0:00:19]} 39. Kg2 {[%emt 0:00:07]} f5 {[%emt 0:00:04]} 40. gxf5+ {[%emt 0:00:04]} Rxf5 {[%emt 0:00:04]} 41. Nd3 {[%emt 0:00:26]} Kh5 {[%emt 0:00:12]} 42. Ne5 {[%emt 0:00:05]} Rg7 {[%emt 0:00:31]} 43. Rb1 {[%emt 0:00:09]} Rf8 {[%emt 0:00:21]} 44. Rbc1 {[%emt 0:00:19]} Rf6 {[%emt 0:00:10]} 45. Rg1 {[%emt 0:00:11]} Rg8 {[%emt 0:00:09]} 46. Kf1 {[%emt 0:00:10]} Nf5 {[%emt 0:00:08]} 47. Ke2 {[%emt 0:00:10]} Nd6 {[%emt 0:00:06]} 48. Rg2 {[%emt 0:00:02]} Rgf8 {[%emt 0:00:13]} 49. Nd7 {[%emt 0:00:01]} Nc4 {[%emt 0:00:13]} 50. Nxf8 {[%emt 0:00:10]} Rxf8 {[%emt 0:00:02]} 51. Rc1 {[%emt 0:00:08]} b5 {[%emt 0:00:13]} 52. a5 {[%emt 0:00:01]} Rf6 {[%emt 0:00:10]} 53. Rcg1 {[%emt 0:00:02]} Rf5 {[%emt 0:00:02]} 54. f4 {[%emt 0:00:41]} gxf4 {[%emt 0:00:14]} 55. Rg8 {[%emt 0:00:01]} f3+ {[%emt 0:00:27]} 56. Kf2 {[%emt 0:00:01]} Rf6 {[%emt 0:00:02]} 57. R1g4 {[%emt 0:00:25]} Nd6 {[%emt 0:00:10]} 58. Rh8+ {[%emt 0:00:06]} Rh6 {[%emt 0:00:01]} 59. Rxh6+ {[%emt 0:00:01]} Kxh6 {[%emt 0:00:01]} 60. Rxh4+ {[%emt 0:00:03]} Kg5 {[%emt 0:00:01]} 61. Rg4+ {[%emt 0:00:01]} Kf5 {[%emt 0:00:03]} 62. Kxf3 {[%emt 0:00:01]} 1-0

[Event "Hungarian Rapid-ch 2022"]
[Site "Ajka"]
[Date "2022.07.15"]
[Round "3.17"]
[White "Horvath, Adam"]
[Black "Seres, Bela"]
[Result "1-0"]
[ECO "C42"]
[WhiteElo "2520"]
[BlackElo "2207"]
[Annotator "ChessBase"]
[PlyCount "47"]
[EventDate "2022.07.15"]
[EventType "swiss"]
[EventCountry "HUN"]
[SourceTitle "playchess.com"]
[Source "ChessBase"]
[SourceQuality "1"]
[TimeControl "900+10"]

1. e4 {[%emt 0:00:13]} e5 {[%emt 0:00:15]} 2. Nf3 {[%emt 0:00:01]} Nf6 {[%emt 0:00:02]} 3. Nxe5 {[%emt 0:00:13]} d6 {[%emt 0:00:01]} 4. Nf3 {[%emt 0:00:02]} Nxe4 {[%emt 0:00:01]} 5. Nc3 {[%emt 0:00:01]} Nxc3 {[%emt 0:00:23]} 6. dxc3 {[%emt 0:00:01]} Bf5 {[%emt 0:00:17]} 7. Be3 {[%emt 0:01:18]} Be7 {[%emt 0:00:25]} 8. Nd4 {[%emt 0:00:08]} Bg6 {[%emt 0:00:16]} 9. Qf3 {[%emt 0:00:16]} c6 {[%emt 0:00:14]} 10. Bd3 {[%emt 0:02:01]} Bxd3 {[%emt 0:01:01]} 11. cxd3 {[%emt 0:00:01]} O-O {[%emt 0:00:39]} 12. h4 {[%emt 0:00:09]} Nd7 {[%emt 0:00:12]} 13. Qg3 {[%emt 0:00:54]} Ne5 {[%emt 0:00:54]} 14. Nf5 {[%emt 0:01:32]} Bf6 {[%emt 0:00:16]} 15. O-O-O {[%emt 0:00:04]} Qd7 {[%emt 0:00:59]} 16. Qh3 {[%emt 0:00:02]} g6 {[%emt 0:00:20]} 17. Nh6+ {[%emt 0:00:01]} Kg7 {[%emt 0:00:01]} 18. g4 {[%emt 0:00:02]} Qe6 {[%emt 0:01:37]} 19. f4 {[%emt 0:00:26]} Nd7 {[%emt 0:01:55]} 20. h5 {[%emt 0:01:53]} Rae8 {[%emt 0:01:25]} 21. hxg6 {[%emt 0:00:04]} Qxe3+ {[%emt 0:01:49]} 22. Qxe3 {[%emt 0:00:02]} Rxe3 {[%emt 0:00:01]} 23. Nf5+ {[%emt 0:00:01]} Kxg6 {[%emt 0:00:09]} 24. Rh6# 1-0

[Event "Hungarian Rapid-ch 2022"]
[Site "Ajka"]
[Date "2022.07.15"]
[Round "3.18"]
[White "Borsos, Bogdan"]
[Black "Varga, Zoltan"]
[Result "0-1"]
[ECO "D02"]
[WhiteElo "2173"]
[BlackElo "2401"]
[Annotator "ChessBase"]
[PlyCount "106"]
[EventDate "2022.07.15"]
[EventType "swiss"]
[EventCountry "HUN"]
[SourceTitle "playchess.com"]
[Source "ChessBase"]
[SourceQuality "1"]
[TimeControl "900+10"]

1. d4 {[%emt 0:00:12]} d5 {[%emt 0:00:11]} 2. Nf3 {[%emt 0:00:14]} c6 {[%emt 0:00:01]} 3. g3 {[%emt 0:00:20]} Bg4 {[%emt 0:00:01]} 4. Bg2 {[%emt 0:00:01]} Nd7 {[%emt 0:00:02]} 5. h3 {[%emt 0:00:11]} Bh5 {[%emt 0:00:01]} 6. Nbd2 {[%emt 0:00:10]} e6 {[%emt 0:00:06]} 7. O-O {[%emt 0:00:06]} Ngf6 {[%emt 0:00:15]} 8. Re1 {[%emt 0:00:10]} Be7 {[%emt 0:00:06]} 9. e4 {[%emt 0:00:40]} O-O {[%emt 0:00:02]} 10. c3 {[%emt 0:00:10]} b5 {[%emt 0:00:44]} 11. a4 {[%emt 0:01:33]} b4 {[%emt 0:01:24]} 12. c4 {[%emt 0:00:43]} dxe4 {[%emt 0:00:17]} 13. Nxe4 {[%emt 0:00:07]} Nxe4 {[%emt 0:00:01]} 14. Rxe4 c5 15. Re1 {[%emt 0:00:32]} Rc8 {[%emt 0:00:14]} 16. d5 {[%emt 0:01:49]} exd5 {[%emt 0:00:54]} 17. cxd5 {[%emt 0:00:43]} Bd6 {[%emt 0:00:20]} 18. g4 {[%emt 0:00:58]} Bg6 {[%emt 0:00:01]} 19. Bg5 {[%emt 0:00:21]} Qb6 {[%emt 0:01:01]} 20. a5 {[%emt 0:00:12]} Qb8 {[%emt 0:00:01]} 21. Be7 {[%emt 0:01:34]} Rfe8 {[%emt 0:00:12]} 22. Bxd6 {[%emt 0:00:11]} Qxd6 {[%emt 0:00:01]} 23. Qa4 {[%emt 0:00:07]} Be4 {[%emt 0:00:39]} 24. Rad1 {[%emt 0:00:26]} Bxf3 {[%emt 0:03:56]} 25. Rxe8+ {[%emt 0:00:03]} Rxe8 {[%emt 0:00:00]} 26. Bxf3 {[%emt 0:00:02]} Rc8 {[%emt 0:00:14]} 27. Qb5 {[%emt 0:01:25]} Ne5 {[%emt 0:00:36]} 28. Bg2 {[%emt 0:00:06]} Rb8 {[%emt 0:00:08]} 29. Qe2 {[%emt 0:00:06]} g5 {[%emt 0:00:12]} 30. Be4 {[%emt 0:02:21]} Kg7 {[%emt 0:00:15]} 31. b3 {[%emt 0:00:19]} Re8 {[%emt 0:00:39]} 32. Qb2 {[%emt 0:00:12]} h6 {[%emt 0:00:48]} 33. Rd2 {[%emt 0:00:18]} Qf6 {[%emt 0:00:36]} 34. Kg2 {[%emt 0:00:03]} c4 {[%emt 0:03:13]} 35. bxc4 {[%emt 0:00:09]} Nxc4 {[%emt 0:00:01]} 36. Qxf6+ {[%emt 0:00:07]} Kxf6 {[%emt 0:00:00]} 37. Rd4 {[%emt 0:00:01]} Nd6 {[%emt 0:00:03]} 38. Bc2 {[%emt 0:01:10]} Rb8 {[%emt 0:00:01]} 39. Bb3 {[%emt 0:00:31]} Ke5 {[%emt 0:00:02]} 40. Rd2 {[%emt 0:00:14]} Rb5 {[%emt 0:00:04]} 41. Ra2 {[%emt 0:02:04]} Kd4 {[%emt 0:00:12]} 42. f4 {[%emt 0:00:02]} Kc3 {[%emt 0:00:15]} 43. Ba4 {[%emt 0:00:27]} b3 {[%emt 0:01:34]} 44. Rf2 {[%emt 0:00:04]} b2 {[%emt 0:00:41]} 45. Bc2 {[%emt 0:00:17]} Rxd5 {[%emt 0:00:43]} 46. fxg5 {[%emt 0:00:22]} hxg5 {[%emt 0:00:00]} 47. Bh7 {[%emt 0:00:26]} f5 {[%emt 0:00:29]} 48. Rf3+ {[%emt 0:00:25]} Kb4 {[%emt 0:00:06]} 49. Rf1 {[%emt 0:00:05]} Nc4 {[%emt 0:00:19]} 50. Rb1 {[%emt 0:00:06]} Rd2+ {[%emt 0:00:09]} 51. Kf3 {[%emt 0:00:03]} f4 {[%emt 0:00:58]} 52. h4 {[%emt 0:00:10]} Rh2 {[%emt 0:00:06]} 53. h5 {[%emt 0:00:04]} Nd2# {[%emt 0:00:01]} 0-1

[Event "Hungarian Rapid-ch 2022"]
[Site "Ajka"]
[Date "2022.07.15"]
[Round "3.19"]
[White "Mihok, Oliver"]
[Black "Deak, Sandor"]
[Result "1-0"]
[ECO "B35"]
[WhiteElo "2549"]
[BlackElo "2264"]
[Annotator "ChessBase"]
[PlyCount "85"]
[EventDate "2022.07.15"]
[EventType "swiss"]
[EventCountry "HUN"]
[SourceTitle "playchess.com"]
[Source "ChessBase"]
[SourceQuality "1"]
[TimeControl "900+10"]

1. e4 {[%emt 0:00:12]} c5 {[%emt 0:00:18]} 2. Nf3 {[%emt 0:00:01]} Nc6 {[%emt 0:00:00]} 3. Nc3 {[%emt 0:00:03]} g6 {[%emt 0:00:02]} 4. d4 {[%emt 0:00:01]} cxd4 {[%emt 0:00:01]} 5. Nxd4 {[%emt 0:00:01]} Bg7 {[%emt 0:00:01]} 6. Be3 {[%emt 0:00:02]} Nf6 {[%emt 0:00:01]} 7. Bc4 {[%emt 0:00:01]} O-O {[%emt 0:00:21]} 8. Bb3 {[%emt 0:00:04]} d6 {[%emt 0:00:09]} 9. f3 {[%emt 0:00:03]} Nxd4 {[%emt 0:00:32]} 10. Bxd4 {[%emt 0:00:03]} Be6 {[%emt 0:00:01]} 11. Qd2 {[%emt 0:00:49]} Nd7 {[%emt 0:00:04]} 12. Bxg7 {[%emt 0:00:14]} Kxg7 {[%emt 0:00:01]} 13. h4 {[%emt 0:00:03]} h5 {[%emt 0:00:28]} 14. O-O-O {[%emt 0:00:39]} Ne5 {[%emt 0:00:01]} 15. Kb1 {[%emt 0:00:17]} a5 {[%emt 0:00:25]} 16. Rhf1 {[%emt 0:02:37]} a4 {[%emt 0:05:52]} 17. Nxa4 {[%emt 0:00:33]} b5 {[%emt 0:01:39]} 18. Nc3 {[%emt 0:00:04]} Qa5 {[%emt 0:01:41]} 19. Nd5 {[%emt 0:00:45]} Qa7 {[%emt 0:00:02]} 20. Qd4 {[%emt 0:00:37]} f6 {[%emt 0:00:34]} 21. f4 {[%emt 0:01:46]} Ng4 {[%emt 0:00:18]} 22. Rfe1 {[%emt 0:00:50]} Qb7 {[%emt 0:01:03]} 23. Rd3 {[%emt 0:01:35]} Rac8 {[%emt 0:00:10]} 24. f5 {[%emt 0:00:42]} Bxd5 {[%emt 0:00:13]} 25. Bxd5 {[%emt 0:00:12]} Qb8 {[%emt 0:00:12]} 26. Rg3 {[%emt 0:00:27]} Ne5 {[%emt 0:01:10]} 27. Qd1 {[%emt 0:00:23]} Rh8 {[%emt 0:00:04]} 28. Ree3 {[%emt 0:00:46]} Rc5 {[%emt 0:00:01]} 29. a3 {[%emt 0:00:21]} Qc7 {[%emt 0:00:18]} 30. c3 {[%emt 0:01:05]} Qb8 {[%emt 0:00:32]} 31. Qb3 {[%emt 0:00:25]} Qa7 {[%emt 0:00:27]} 32. Re1 {[%emt 0:01:10]} Rhc8 {[%emt 0:00:14]} 33. Rf1 {[%emt 0:00:15]} Rf8 {[%emt 0:00:23]} 34. fxg6 {[%emt 0:00:07]} Nc4 {[%emt 0:00:09]} 35. Qd1 {[%emt 0:00:23]} Rh8 {[%emt 0:00:11]} 36. Rf5 {[%emt 0:00:14]} Rxd5 {[%emt 0:00:49]} 37. exd5 {[%emt 0:00:27]} Rh6 {[%emt 0:01:07]} 38. Qe2 {[%emt 0:00:29]} Ne5 {[%emt 0:01:19]} 39. Rxh5 {[%emt 0:00:15]} Rxg6 {[%emt 0:00:04]} 40. Rxg6+ {[%emt 0:00:22]} Kxg6 {[%emt 0:00:01]} 41. Rh8 {[%emt 0:00:16]} Qg1+ {[%emt 0:00:01]} 42. Ka2 {[%emt 0:00:01]} Qc5 {[%emt 0:00:02]} 43. Qh5+ {[%emt 0:00:05]} 1-0

[Event "Hungarian Rapid-ch 2022"]
[Site "Ajka"]
[Date "2022.07.15"]
[Round "3.20"]
[White "Kokeny, Gabor"]
[Black "Lizak, Peter"]
[Result "1-0"]
[ECO "C01"]
[WhiteElo "2204"]
[BlackElo "2400"]
[Annotator "ChessBase"]
[PlyCount "131"]
[EventDate "2022.07.15"]
[EventType "swiss"]
[EventCountry "HUN"]
[SourceTitle "playchess.com"]
[Source "ChessBase"]
[SourceQuality "1"]
[TimeControl "900+10"]

1. e4 {[%emt 0:00:13]} e6 {[%emt 0:00:14]} 2. d4 {[%emt 0:00:07]} d5 {[%emt 0:00:02]} 3. exd5 {[%emt 0:00:17]} exd5 {[%emt 0:00:02]} 4. Bd3 {[%emt 0:00:06]} c5 {[%emt 0:00:45]} 5. dxc5 {[%emt 0:01:16]} Bxc5 {[%emt 0:00:04]} 6. Nf3 {[%emt 0:00:08]} Nf6 {[%emt 0:00:02]} 7. O-O {[%emt 0:00:06]} O-O {[%emt 0:00:03]} 8. Bg5 {[%emt 0:00:22]} h6 {[%emt 0:00:40]} 9. Bh4 {[%emt 0:00:08]} Bg4 {[%emt 0:00:24]} 10. Nc3 {[%emt 0:01:54]} g5 {[%emt 0:01:57]} 11. Bg3 {[%emt 0:00:03]} Nc6 {[%emt 0:00:02]} 12. Qd2 {[%emt 0:02:06]} Bxf3 {[%emt 0:00:30]} 13. gxf3 {[%emt 0:00:01]} Nd4 {[%emt 0:01:38]} 14. Kg2 {[%emt 0:00:06]} Qd7 {[%emt 0:00:20]} 15. h3 {[%emt 0:02:27]} Nh5 {[%emt 0:01:51]} 16. Rae1 {[%emt 0:04:55]} Rfe8 {[%emt 0:03:08]} 17. Rxe8+ {[%emt 0:01:10]} Rxe8 {[%emt 0:00:04]} 18. Re1 {[%emt 0:00:05]} Rxe1 {[%emt 0:01:43]} 19. Qxe1 {[%emt 0:00:01]} Ne6 {[%emt 0:00:10]} 20. Bf1 {[%emt 0:01:06]} Nhf4+ {[%emt 0:01:19]} 21. Kh2 {[%emt 0:00:21]} Nd4 {[%emt 0:02:04]} 22. Qd1 {[%emt 0:00:16]} Nde6 {[%emt 0:01:14]} 23. Bd3 {[%emt 0:01:10]} Bb4 {[%emt 0:00:20]} 24. Ne2 {[%emt 0:00:13]} Nxd3 {[%emt 0:00:14]} 25. Qxd3 {[%emt 0:00:03]} Bc5 {[%emt 0:00:09]} 26. Qf5 {[%emt 0:00:24]} Nf8 {[%emt 0:00:11]} 27. Qd3 {[%emt 0:00:18]} Ne6 {[%emt 0:00:11]} 28. Qf5 {[%emt 0:00:06]} Nf8 {[%emt 0:00:07]} 29. Qd3 {[%emt 0:00:00]} Bb6 {[%emt 0:00:05]} 30. Nc3 {[%emt 0:00:02]} d4 {[%emt 0:00:02]} 31. Ne4 {[%emt 0:00:02]} Qe6 {[%emt 0:00:02]} 32. Nd6 {[%emt 0:00:37]} Ng6 {[%emt 0:00:13]} 33. Nf5 {[%emt 0:00:14]} h5 {[%emt 0:00:03]} 34. Qe4 {[%emt 0:00:10]} h4 {[%emt 0:00:11]} 35. Bb8 {[%emt 0:00:02]} Qxe4 {[%emt 0:00:11]} 36. fxe4 {[%emt 0:00:01]} Bc5 {[%emt 0:00:08]} 37. Kg2 {[%emt 0:00:10]} a6 {[%emt 0:00:01]} 38. Kf3 {[%emt 0:00:05]} f6 {[%emt 0:00:06]} 39. Ke2 {[%emt 0:00:21]} Kf7 {[%emt 0:00:18]} 40. Kd3 {[%emt 0:00:02]} Ne5+ {[%emt 0:00:19]} 41. Bxe5 {[%emt 0:00:01]} fxe5 {[%emt 0:00:01]} 42. Nh6+ {[%emt 0:00:17]} Ke6 {[%emt 0:00:05]} 43. Ng4 {[%emt 0:00:04]} b5 {[%emt 0:00:03]} 44. f3 {[%emt 0:00:09]} Bb4 {[%emt 0:00:03]} 45. Nh6 {[%emt 0:00:21]} Bf8 {[%emt 0:00:07]} 46. Ng4 {[%emt 0:00:03]} Bb4 {[%emt 0:00:02]} 47. Nf2 {[%emt 0:00:02]} Be1 {[%emt 0:00:03]} 48. Ng4 {[%emt 0:00:06]} Bg3 {[%emt 0:00:05]} 49. Ke2 {[%emt 0:00:19]} a5 {[%emt 0:00:07]} 50. Kd3 {[%emt 0:00:08]} Bf4 {[%emt 0:00:04]} 51. b3 {[%emt 0:00:32]} Bc1 {[%emt 0:00:02]} 52. a4 {[%emt 0:00:01]} bxa4 {[%emt 0:00:07]} 53. bxa4 {[%emt 0:00:01]} Ba3 {[%emt 0:00:06]} 54. Kc4 {[%emt 0:00:06]} Bb4 {[%emt 0:00:29]} 55. Nf2 {[%emt 0:00:02]} Be1 {[%emt 0:00:19]} 56. Nd3 {[%emt 0:00:01]} Bc3 {[%emt 0:00:02]} 57. Kb5 {[%emt 0:00:05]} Bd2 {[%emt 0:00:09]} 58. Kc6 {[%emt 0:00:20]} Bc3 {[%emt 0:00:10]} 59. Nc5+ {[%emt 0:00:06]} Kf6 {[%emt 0:00:03]} 60. Kd5 {[%emt 0:00:07]} g4 {[%emt 0:00:21]} 61. fxg4 {[%emt 0:00:02]} Kg5 {[%emt 0:00:00]} 62. Nd3 {[%emt 0:00:30]} Kf6 {[%emt 0:00:02]} 63. Nxe5 {[%emt 0:00:05]} Kg5 {[%emt 0:00:14]} 64. Nd3 {[%emt 0:00:03]} Kf6 {[%emt 0:00:11]} 65. e5+ {[%emt 0:00:01]} Ke7 {[%emt 0:00:01]} 66. e6 {[%emt 0:00:05]} 1-0

[Event "Hungarian Rapid-ch 2022"]
[Site "Ajka"]
[Date "2022.07.15"]
[Round "3.21"]
[White "Tancsa, Tamas"]
[Black "Hoang, Thanh Trang"]
[Result "0-1"]
[ECO "C11"]
[WhiteElo "2103"]
[BlackElo "2376"]
[Annotator "ChessBase"]
[PlyCount "66"]
[EventDate "2022.07.15"]
[EventType "swiss"]
[EventCountry "HUN"]
[SourceTitle "playchess.com"]
[Source "ChessBase"]
[SourceQuality "1"]
[TimeControl "900+10"]

1. e4 {[%emt 0:00:14]} e6 {[%emt 0:00:14]} 2. d4 {[%emt 0:00:01]} d5 {[%emt 0:00:04]} 3. Nc3 {[%emt 0:00:01]} Nf6 {[%emt 0:00:04]} 4. e5 {[%emt 0:00:02]} Nfd7 {[%emt 0:00:05]} 5. f4 {[%emt 0:00:01]} c5 {[%emt 0:00:06]} 6. Nf3 {[%emt 0:00:02]} Nc6 {[%emt 0:00:08]} 7. Be3 {[%emt 0:00:03]} a6 {[%emt 0:00:10]} 8. Qd2 {[%emt 0:00:01]} b5 {[%emt 0:00:12]} 9. Nd1 {[%emt 0:00:02]} Be7 {[%emt 0:01:27]} 10. Be2 {[%emt 0:00:03]} Qb6 {[%emt 0:00:47]} 11. Nf2 {[%emt 0:00:08]} b4 {[%emt 0:00:35]} 12. O-O {[%emt 0:00:29]} a5 {[%emt 0:00:25]} 13. c4 {[%emt 0:00:59]} cxd4 {[%emt 0:03:37]} 14. Nxd4 {[%emt 0:00:03]} Bc5 {[%emt 0:00:10]} 15. Rfd1 {[%emt 0:00:07]} dxc4 {[%emt 0:01:21]} 16. Bxc4 {[%emt 0:00:29]} Nxd4 {[%emt 0:01:19]} 17. Bxd4 {[%emt 0:00:02]} O-O {[%emt 0:00:26]} 18. Ne4 {[%emt 0:00:08]} Bxd4+ {[%emt 0:00:33]} 19. Qxd4 {[%emt 0:00:02]} Bb7 {[%emt 0:00:23]} 20. Nd6 {[%emt 0:01:14]} Ba6 {[%emt 0:02:26]} 21. Bxa6 {[%emt 0:01:10]} Rxa6 {[%emt 0:00:28]} 22. Rac1 {[%emt 0:00:03]} Ra7 {[%emt 0:01:19]} 23. Nc8 {[%emt 0:02:09]} Qxd4+ {[%emt 0:00:02]} 24. Rxd4 {[%emt 0:00:01]} Rb7 {[%emt 0:00:07]} 25. Nd6 {[%emt 0:00:02]} Ra7 {[%emt 0:00:17]} 26. Rc6 {[%emt 0:01:00]} f6 {[%emt 0:00:25]} 27. Nb5 {[%emt 0:01:20]} fxe5 {[%emt 0:00:37]} 28. fxe5 {[%emt 0:00:01]} Rb7 {[%emt 0:00:28]} 29. Rxe6 {[%emt 0:00:30]} Nc5 {[%emt 0:00:20]} 30. Rc6 {[%emt 0:00:01]} Rxb5 {[%emt 0:01:13]} 31. Rd5 {[%emt 0:00:01]} Ne6 {[%emt 0:00:17]} 32. Rxb5 {[%emt 0:00:11]} Nd4 {[%emt 0:00:01]} 33. Rcc5 {[%emt 0:00:05]} Ne2+ {[%emt 0:00:02]} 0-1

[Event "Hungarian Rapid-ch 2022"]
[Site "Ajka"]
[Date "2022.07.15"]
[Round "3.22"]
[White "Straubinger, Daniel"]
[Black "Giang, Tran Nam"]
[Result "1-0"]
[ECO "B41"]
[WhiteElo "2349"]
[BlackElo "2144"]
[Annotator "ChessBase"]
[PlyCount "59"]
[EventDate "2022.07.15"]
[EventType "swiss"]
[EventCountry "HUN"]
[SourceTitle "playchess.com"]
[Source "ChessBase"]
[SourceQuality "1"]
[TimeControl "900+10"]

1. e4 {[%emt 0:00:13]} c5 {[%emt 0:00:11]} 2. Nf3 {[%emt 0:00:04]} e6 {[%emt 0:00:01]} 3. d4 {[%emt 0:00:03]} cxd4 {[%emt 0:00:02]} 4. Nxd4 {[%emt 0:00:03]} a6 {[%emt 0:00:01]} 5. c4 {[%emt 0:00:08]} Nf6 {[%emt 0:00:05]} 6. Nc3 {[%emt 0:00:03]} Bb4 {[%emt 0:00:02]} 7. Qc2 {[%emt 0:00:30]} Qc7 {[%emt 0:00:45]} 8. a3 {[%emt 0:00:17]} Bxc3+ {[%emt 0:00:39]} 9. Qxc3 {[%emt 0:00:01]} Nxe4 {[%emt 0:00:48]} 10. Nb5 {[%emt 0:00:02]} axb5 {[%emt 0:01:41]} 11. Qxg7 {[%emt 0:00:06]} Rf8 {[%emt 0:00:41]} 12. Bh6 {[%emt 0:02:02]} Qc5 {[%emt 0:01:10]} 13. cxb5 {[%emt 0:01:37]} d5 {[%emt 0:02:13]} 14. f3 {[%emt 0:04:34]} Qf2+ {[%emt 0:02:11]} 15. Kd1 {[%emt 0:00:14]} Nd7 {[%emt 0:00:57]} 16. fxe4 {[%emt 0:00:27]} f6 {[%emt 0:01:06]} 17. Qxh7 {[%emt 0:03:01]} Qxb2 {[%emt 0:00:43]} 18. Rc1 {[%emt 0:00:09]} Qd4+ {[%emt 0:00:34]} 19. Ke1 {[%emt 0:00:57]} Rf7 {[%emt 0:01:55]} 20. Qg8+ {[%emt 0:01:34]} Nf8 {[%emt 0:00:43]} 21. exd5 {[%emt 0:01:39]} exd5 {[%emt 0:00:36]} 22. Bxf8 {[%emt 0:00:30]} Qe3+ {[%emt 0:00:58]} 23. Kd1 {[%emt 0:00:11]} Rxf8 {[%emt 0:00:34]} 24. Qg6+ {[%emt 0:00:04]} Kd8 {[%emt 0:00:09]} 25. Qg3 {[%emt 0:00:33]} Qd4+ {[%emt 0:00:16]} 26. Bd3 {[%emt 0:00:06]} Bg4+ {[%emt 0:00:02]} 27. Kd2 {[%emt 0:00:03]} Rf7 {[%emt 0:00:24]} 28. Rhe1 {[%emt 0:00:20]} Rd7 {[%emt 0:00:09]} 29. h3 {[%emt 0:00:02]} Rxa3 {[%emt 0:00:04]} 30. Qb8# {[%emt 0:00:03]} 1-0

[Event "Hungarian Rapid-ch 2022"]
[Site "Ajka"]
[Date "2022.07.15"]
[Round "3.23"]
[White "Pogany, Zsombor"]
[Black "Dobos, Jozsef"]
[Result "0-1"]
[ECO "B06"]
[WhiteElo "2178"]
[BlackElo "2244"]
[Annotator "ChessBase"]
[PlyCount "82"]
[EventDate "2022.07.15"]
[EventType "swiss"]
[EventCountry "HUN"]
[SourceTitle "playchess.com"]
[Source "ChessBase"]
[SourceQuality "1"]
[TimeControl "900+10"]

1. e4 {[%emt 0:00:14]} g6 {[%emt 0:00:38]} 2. h4 {[%emt 0:00:50]} h5 {[%emt 0:01:08]} 3. d4 {[%emt 0:00:26]} Bg7 {[%emt 0:00:09]} 4. Nc3 {[%emt 0:00:08]} d6 {[%emt 0:01:45]} 5. Be3 {[%emt 0:00:16]} a6 {[%emt 0:00:09]} 6. Qd2 {[%emt 0:02:06]} b5 {[%emt 0:00:15]} 7. f3 {[%emt 0:00:14]} Nf6 {[%emt 0:01:52]} 8. a4 {[%emt 0:03:25]} b4 {[%emt 0:00:09]} 9. Nd1 {[%emt 0:01:00]} a5 {[%emt 0:00:05]} 10. Bc4 {[%emt 0:00:31]} d5 {[%emt 0:00:26]} 11. Bd3 {[%emt 0:01:00]} dxe4 {[%emt 0:00:04]} 12. Bxe4 {[%emt 0:00:04]} Nxe4 {[%emt 0:03:24]} 13. fxe4 {[%emt 0:00:03]} Bb7 {[%emt 0:00:23]} 14. Nf2 {[%emt 0:00:31]} c5 {[%emt 0:00:43]} 15. c3 {[%emt 0:00:09]} bxc3 {[%emt 0:00:49]} 16. bxc3 {[%emt 0:00:02]} Nc6 {[%emt 0:00:19]} 17. Nf3 {[%emt 0:00:14]} Ba6 {[%emt 0:00:17]} 18. e5 {[%emt 0:02:44]} cxd4 {[%emt 0:00:17]} 19. cxd4 {[%emt 0:00:06]} Nb4 {[%emt 0:00:08]} 20. Ng5 {[%emt 0:01:05]} Qd5 {[%emt 0:00:28]} 21. Nge4 {[%emt 0:00:26]} Rc8 {[%emt 0:00:49]} 22. Nc5 {[%emt 0:01:27]} Rxc5 {[%emt 0:00:49]} 23. dxc5 {[%emt 0:00:02]} Qxe5 {[%emt 0:00:01]} 24. Rb1 {[%emt 0:01:29]} Bh6 {[%emt 0:00:54]} 25. Rh3 {[%emt 0:00:22]} O-O {[%emt 0:00:15]} 26. Kd1 {[%emt 0:00:12]} Bxe3 {[%emt 0:00:20]} 27. Rxe3 {[%emt 0:00:12]} Qxc5 {[%emt 0:00:17]} 28. Ne4 {[%emt 0:00:15]} Qf5 {[%emt 0:00:09]} 29. Rbb3 {[%emt 0:00:14]} Qg4+ {[%emt 0:00:37]} 30. Kc1 {[%emt 0:00:02]} Qxh4 {[%emt 0:00:09]} 31. Kb2 {[%emt 0:00:12]} Rc8 {[%emt 0:00:24]} 32. Rbc3 {[%emt 0:00:08]} Rb8 {[%emt 0:00:25]} 33. Rb3 {[%emt 0:00:09]} Bc4 {[%emt 0:00:28]} 34. Rxb4 {[%emt 0:00:20]} Rxb4+ {[%emt 0:00:03]} 35. Ka3 {[%emt 0:00:01]} Rb8 {[%emt 0:00:52]} 36. Nc5 {[%emt 0:00:11]} Bd5 {[%emt 0:00:36]} 37. Qxa5 {[%emt 0:00:09]} Qh1 {[%emt 0:00:08]} 38. Qc3 {[%emt 0:00:16]} Qxg2 {[%emt 0:00:06]} 39. Qa1 {[%emt 0:00:13]} Qd2 {[%emt 0:00:06]} 40. Rc3 {[%emt 0:00:02]} Qd4 {[%emt 0:00:03]} 41. a5 {[%emt 0:00:12]} Qb4# {[%emt 0:00:02]} 0-1